fUSD/lending_fUSD_20260113
["ID","MTS","AMOUNT","RATE_DAILY","PERIOD"]
[401727440,1768348260125,-500.0,0.00017534,2]
[401727441,1768348260136,-545.5945135,0.00017534,2]
[401727442,1768348260147,-648.64,0.00017534,2]
[401727443,1768348260159,-500.0,0.00017534,2]
[401727444,1768348260169,-531.06,0.00017534,2]
[401727445,1768348260180,-348.6336698,0.00017534,2]
[401727446,1768348260191,-500.0,0.00017534,2]
[401727447,1768348260202,-500.0,0.00017534,2]
[401727448,1768348260213,-500.0,0.00017534,2]
[401727449,1768348260224,-500.0,0.00017534,2]
[401727450,1768348260235,-623.62,0.00017534,2]
[401727451,1768348260246,-500.0,0.00017534,2]
[401727452,1768348260256,-500.0,0.00017534,2]
[401727453,1768348260267,-500.0,0.00017534,2]
[401727454,1768348260279,-500.0,0.00017534,2]
[401727455,1768348260291,-500.0,0.00017534,2]
[401727456,1768348260302,-500.0,0.00017534,2]
[401727457,1768348260313,-231.51035878,0.00017534,2]
[401727458,1768348260324,-500.0,0.00017534,2]
[401727459,1768348260335,-500.0,0.00017534,2]
[401727460,1768348260347,-601.5364402,0.00017534,2]
[401727461,1768348260358,-532.26284279,0.00017534,2]
[401727462,1768348260369,-500.0,0.00017534,2]
[401727463,1768348260380,-500.0,0.00017534,2]
[401727464,1768348260395,-500.0,0.00017534,2]
[401727465,1768348260407,-500.0,0.00017534,2]
[401727466,1768348260418,-500.0,0.00017534,2]
[401727467,1768348260429,-689.94,0.00017534,2]
[401727468,1768348260439,-500.0,0.00017534,2]
[401727469,1768348260449,-500.0,0.00017534,2]
[401727470,1768348260460,-345.47964584,0.00017534,2]
[401727471,1768348260471,-500.0,0.00017534,2]
[401727472,1768348260481,-500.0,0.00017534,2]
[401727473,1768348260492,-642.38,0.00017534,2]
[401727474,1768348260503,-661.82,0.00017534,2]
[401727475,1768348260514,-541.28587466,0.00017534,2]
[401727476,1768348260525,-599.49,0.00017534,2]
[401727477,1768348260536,-500.0,0.00017534,2]
[401727478,1768348260547,-500.0,0.00017534,2]
[401727479,1768348260557,-500.0,0.00017534,2]
[401727480,1768348260568,-500.0,0.00017534,2]
[401727481,1768348260578,-500.0,0.00017534,2]
[401727482,1768348260590,-597.22,0.00017534,2]
[401727483,1768348260601,-891.52,0.00017534,2]
[401727484,1768348260611,-500.0,0.00017534,2]
[401727485,1768348260622,-500.0,0.00017534,2]
[401727486,1768348260633,-603.54113869,0.00017534,2]
[401727487,1768348260644,-520.68326879,0.00017534,2]
[401727488,1768348260654,-837.16,0.00017534,2]
[401727489,1768348260666,-500.0,0.00017534,2]
[401727490,1768348260680,-500.0,0.00017534,2]
[401727491,1768348260690,-571.52574434,0.00017534,2]
[401727492,1768348260700,-500.0,0.00017534,2]
[401727493,1768348260711,-500.0,0.00017534,2]
[401727494,1768348260722,-574.96,0.00017534,2]
[401727495,1768348260732,-579.54,0.00017534,2]
[401727496,1768348260744,-500.0,0.00017534,2]
[401727497,1768348260754,-943.68,0.00017534,2]
[401727498,1768348260765,-500.0,0.00017534,2]
[401727499,1768348260775,-500.0,0.00017534,2]
[401727500,1768348260785,-500.0,0.00017534,2]
[401727501,1768348260796,-500.0,0.00017534,2]
[401727502,1768348260806,-500.0,0.00017534,2]
[401727503,1768348260816,-500.0,0.00017534,2]
[401727504,1768348260827,-500.0,0.00017534,2]
[401727505,1768348260837,-519.54058116,0.00017534,2]
[401727506,1768348260847,-801.84,0.00017534,2]
[401727507,1768348260858,-1771.51,0.00017534,2]
[401727508,1768348260868,-1385.34,0.00017534,2]
[401727509,1768348260879,-500.0,0.00017534,2]
[401727510,1768348260889,-500.0,0.00017534,2]
[401727511,1768348260900,-500.0,0.00017534,2]
[401727512,1768348260910,-500.0,0.00017534,2]
[401727513,1768348260920,-783.88,0.00017534,2]
[401727514,1768348260930,-500.0,0.00017534,2]
[401727515,1768348260940,-500.0,0.00017534,2]
[401727516,1768348260951,-500.0,0.00017534,2]
[401727517,1768348260962,-500.0,0.00017534,2]
[401727518,1768348260973,-500.0,0.00017534,2]
[401727519,1768348260984,-500.0,0.00017534,2]
[401727520,1768348260994,-500.0,0.00017534,2]
[401727521,1768348261005,-500.0,0.00017534,2]
[401727522,1768348261016,-500.0,0.00017534,2]
[401727523,1768348261027,-188.78832616,0.00017534,2]
[401727524,1768348261037,-500.0,0.00017534,2]
[401727525,1768348261048,-620.98982577,0.00017534,2]
[401727526,1768348261058,-1823.93,0.00017534,2]
[401727527,1768348261068,-500.0,0.00017534,2]
[401727528,1768348261078,-500.0,0.00017534,2]
[401727529,1768348261088,-500.0,0.00017534,2]
[401727530,1768348261100,-861.16,0.00017534,2]
[401727531,1768348261110,-600.8675916,0.00017534,2]
[401727532,1768348261121,-500.0,0.00017534,2]
[401727533,1768348261131,-500.0,0.00017534,2]
[401727534,1768348261142,-500.0,0.00017534,2]
[401727535,1768348261152,-500.0,0.00017534,2]
[401727536,1768348261164,-500.0,0.00017534,2]
[401727537,1768348261175,-500.0,0.00017534,2]
[401727538,1768348261185,-500.0,0.00017534,2]
[401727539,1768348261195,-500.0,0.00017534,2]
[401727540,1768348261205,-569.1,0.00017534,2]
[401727541,1768348261216,-500.0,0.00017534,2]
[401727542,1768348261227,-500.0,0.00017534,2]
[401727543,1768348261237,-510.27,0.00017534,2]
[401727544,1768348261248,-1218.82,0.00017534,2]
[401727545,1768348261258,-572.71,0.00017534,2]
[401727546,1768348261270,-500.0,0.00017534,2]
[401727547,1768348261280,-500.0,0.00017534,2]
[401727548,1768348261290,-500.0,0.00017534,2]
[401727549,1768348261301,-1041.23,0.00017534,2]
[401727550,1768348261311,-300.0,0.00017534,2]
[401727551,1768348261321,-500.0,0.00017534,2]
[401727552,1768348261332,-500.0,0.00017534,2]
[401727553,1768348261343,-500.0,0.00017534,2]
[401727554,1768348261354,-282.26793152,0.00017534,2]
[401727555,1768348261365,-500.0,0.00017534,2]
[401727556,1768348261375,-500.0,0.00017534,2]
[401727557,1768348261386,-272.80971491,0.00017534,2]
[401727558,1768348261397,-500.0,0.00017534,2]
[401727559,1768348261408,-1122.73,0.00017534,2]
[401727560,1768348261419,-6092.66,0.00017534,2]
[401727561,1768348261429,-1047.86,0.00017534,2]
[401727562,1768348261439,-500.0,0.00017534,2]
[401727563,1768348261449,-500.0,0.00017534,2]
[401727564,1768348261460,-500.0,0.00017534,2]
[401727565,1768348261470,-500.0,0.00017534,2]
[401727566,1768348261481,-2477.56,0.00017534,2]
[401727567,1768348261491,-995.11,0.00017534,2]
[401727568,1768348261502,-500.0,0.00017534,2]
[401727569,1768348261512,-1740.84,0.00017534,2]
[401727570,1768348261523,-500.0,0.00017534,2]
[401727571,1768348261533,-500.0,0.00017534,2]
[401727572,1768348261542,-572.34,0.00017534,2]
[401727573,1768348261558,-6567.43,0.00017534,2]
[401727574,1768348261568,-3311.16,0.00017534,2]
[401727575,1768348261579,-3615.15,0.00017534,2]
[401727576,1768348261589,-500.0,0.00017534,2]
[401727577,1768348261600,-500.0,0.00017534,2]
[401727578,1768348261610,-500.0,0.00017534,2]
[401727579,1768348261620,-500.0,0.00017534,2]
[401727580,1768348261630,-500.0,0.00017534,2]
[401727581,1768348261640,-500.0,0.00017534,2]
[401727582,1768348261651,-500.0,0.00017534,2]
[401727583,1768348261662,-1383.38,0.00017534,2]
[401727584,1768348261681,-2379.05,0.00017534,2]
[401727585,1768348261691,-500.0,0.00017534,2]
[401727586,1768348261701,-540.41,0.00017534,2]
[401727587,1768348261711,-500.0,0.00017534,2]
[401727588,1768348261722,-500.0,0.00017534,2]
[401727589,1768348261732,-500.0,0.00017534,2]
[401727590,1768348261743,-999.87,0.00017534,2]
[401727591,1768348261754,-3979.49,0.00017534,2]
[401727592,1768348261764,-3810.4,0.00017534,2]
[401727593,1768348261774,-500.0,0.00017534,2]
[401727594,1768348261784,-500.0,0.00017534,2]
[401727595,1768348261794,-500.0,0.00017534,2]
[401727596,1768348261804,-500.0,0.00017534,2]
[401727597,1768348261814,-500.0,0.00017534,2]
[401727598,1768348261825,-1233.93,0.00017534,2]
[401727599,1768348261835,-500.0,0.00017534,2]
[401727600,1768348261844,-500.0,0.00017534,2]
[401727601,1768348261855,-957.61,0.00017534,2]
[401727602,1768348261865,-3158.38,0.00017534,2]
[401727603,1768348261876,-582.02,0.00017534,2]
[401727604,1768348261886,-500.0,0.00017534,2]
[401727605,1768348261896,-500.0,0.00017534,2]
[401727606,1768348262271,-1322.38,0.00017534,2]
[401727607,1768348262300,-500.0,0.00017534,2]
[401727608,1768348262317,-500.0,0.00017534,2]
[401727609,1768348262327,-864.14,0.00017534,2]
[401727610,1768348262337,-833.3,0.00017534,2]
[401727611,1768348262346,-711.81,0.00017534,2]
[401727612,1768348262355,-538.00957002,0.00017534,2]
[401727613,1768348262365,-6718.78,0.00017534,2]
[401727614,1768348262374,-500.0,0.00017534,2]
[401727615,1768348262383,-500.0,0.00017534,2]
[401727616,1768348262393,-500.0,0.00017534,2]
[401727617,1768348262402,-500.0,0.00017534,2]
[401727618,1768348262412,-1392.52,0.00017534,2]
[401727619,1768348262421,-500.0,0.00017534,2]
[401727620,1768348262431,-836.52,0.00017534,2]
[401727621,1768348262441,-929.1,0.00017534,2]
[401727622,1768348262450,-483.21,0.00017544,2]
[401727623,1768348262459,-963.63,0.00017544,2]
[401727624,1768348262468,-662.09,0.00017574,2]
[401727625,1768348262477,-690.78364889,0.00017604,2]
[401727626,1768348262487,-5687.80677552,0.00017609,2]
[401727627,1768348262496,-292.0,0.00017634,2]
[401727628,1768348262505,-292.0,0.00017635,2]
[401727629,1768348262515,-5645.94056708,0.0001764,2]
[401727630,1768348262524,-2865.4,0.00017656,2]
[401727631,1768348262533,-2394.729,0.00017672,2]
[401727632,1768348262542,-166.79,0.00017674,2]
[401727633,1768348262551,-163.0,0.0001768,2]
[401727634,1768348262560,-373.07297731,0.00017683,2]
[401727635,1768348262569,-514.84070869,0.00017683,2]
[401727636,1768348262578,-1500.0,0.000177,2]
[401727637,1768348262587,-1000.0,0.00017709,2]
[401727638,1768348262596,-150.0,0.00017751,2]
[401727639,1768348262605,-292.0,0.00017769,2]
[401727640,1768348262615,-796.0,0.00017789,2]
[401727641,1768348262624,-495.36,0.00017795,2]
[401727642,1768348262633,-1500.0,0.000178,2]
[401727643,1768348262642,-150.0,0.000178,2]
[401727644,1768348262652,-500.0,0.00017808,2]
[401727645,1768348262662,-500.0,0.00017808,2]
[401727646,1768348262674,-151.0,0.00017808,2]
[401727647,1768348262684,-500.0,0.00017808,2]
[401727648,1768348262693,-500.0,0.00017808,2]
[401727649,1768348262702,-500.0,0.00017808,2]
[401727650,1768348262712,-648.64,0.00017808,2]
[401727651,1768348262721,-500.0,0.00017808,2]
[401727652,1768348262730,-531.06,0.00017808,2]
[401727653,1768348262740,-500.0,0.00017808,2]
[401727654,1768348262749,-500.0,0.00017808,2]
[401727655,1768348262758,-500.0,0.00017808,2]
[401727656,1768348262767,-500.0,0.00017808,2]
[401727657,1768348262775,-623.62,0.00017808,2]
[401727658,1768348262784,-500.0,0.00017808,2]
[401727659,1768348262794,-500.0,0.00017808,2]
[401727660,1768348262803,-150.30633488,0.00017808,2]
[401727661,1768348262812,-500.0,0.00017808,2]
[401727662,1768348262821,-500.0,0.00017808,2]
[401727663,1768348262830,-500.0,0.00017808,2]
[401727664,1768348262840,-500.0,0.00017808,2]
[401727665,1768348262849,-689.94,0.00017808,2]
[401727666,1768348262859,-500.0,0.00017808,2]
[401727667,1768348262869,-293.07385659,0.00017808,2]
[401727668,1768348262879,-500.0,0.00017808,2]
[401727669,1768348262888,-642.38,0.00017808,2]
[401727670,1768348262898,-661.82,0.00017808,2]
[401727671,1768348262907,-599.49,0.00017808,2]
[401727672,1768348262917,-500.0,0.00017808,2]
[401727673,1768348262926,-500.0,0.00017808,2]
[401727674,1768348262936,-597.22,0.00017808,2]
[401727675,1768348262945,-891.52,0.00017808,2]
[401727676,1768348262955,-500.0,0.00017808,2]
[401727677,1768348262964,-500.0,0.00017808,2]
[401727678,1768348262973,-837.16,0.00017808,2]
[401727679,1768348262982,-500.0,0.00017808,2]
[401727680,1768348262991,-500.0,0.00017808,2]
[401727681,1768348263001,-574.96,0.00017808,2]
[401727682,1768348263011,-579.54,0.00017808,2]
[401727683,1768348263020,-500.0,0.00017808,2]
[401727684,1768348263030,-943.68,0.00017808,2]
[401727685,1768348263040,-500.0,0.00017808,2]
[401727686,1768348263049,-254.77160339,0.00017808,2]
[401727687,1768348263059,-500.0,0.00017808,2]
[401727688,1768348263068,-500.0,0.00017808,2]
[401727689,1768348263077,-578.14378618,0.00017808,2]
[401727690,1768348263088,-500.0,0.00017808,2]
[401727691,1768348263098,-500.0,0.00017808,2]
[401727692,1768348263107,-801.84,0.00017808,2]
[401727693,1768348263116,-1771.51,0.00017808,2]
[401727694,1768348263126,-1385.34,0.00017808,2]
[401727695,1768348263135,-500.0,0.00017808,2]
[401727696,1768348263145,-500.0,0.00017808,2]
[401727697,1768348263155,-368.03297437,0.00017808,2]
[401727698,1768348263164,-500.0,0.00017808,2]
[401727699,1768348263174,-783.88,0.00017808,2]
[401727700,1768348263184,-500.0,0.00017808,2]
[401727701,1768348263193,-500.0,0.00017808,2]
[401727702,1768348263203,-500.0,0.00017808,2]
[401727703,1768348263213,-312.4812665,0.00017808,2]
[401727704,1768348263222,-500.0,0.00017808,2]
[401727705,1768348263232,-500.0,0.00017808,2]
[401727706,1768348263242,-500.0,0.00017808,2]
[401727707,1768348263252,-1823.93,0.00017808,2]
[401727708,1768348263261,-500.0,0.00017808,2]
[401727709,1768348263271,-861.16,0.00017808,2]
[401727710,1768348263281,-500.0,0.00017808,2]
[401727711,1768348263291,-500.0,0.00017808,2]
[401727712,1768348263301,-500.0,0.00017808,2]
[401727713,1768348263311,-632.89982904,0.00017808,2]
[401727714,1768348263320,-500.0,0.00017808,2]
[401727715,1768348263330,-569.1,0.00017808,2]
[401727716,1768348263339,-243.27731025,0.00017808,2]
[401727717,1768348263349,-510.27,0.00017808,2]
[401727718,1768348263359,-1218.82,0.00017808,2]
[401727719,1768348263369,-572.71,0.00017808,2]
[401727720,1768348263379,-500.0,0.00017808,2]
[401727721,1768348263389,-500.0,0.00017808,2]
[401727722,1768348263399,-1041.23,0.00017808,2]
[401727723,1768348263408,-300.0,0.00017808,2]
[401727724,1768348263419,-500.0,0.00017808,2]
[401727725,1768348263429,-500.0,0.00017808,2]
[401727726,1768348263439,-500.0,0.00017808,2]
[401727727,1768348263449,-500.0,0.00017808,2]
[401727728,1768348263459,-1122.73,0.00017808,2]
[401727729,1768348263468,-6092.66,0.00017808,2]
[401727730,1768348263478,-1047.86,0.00017808,2]
[401727731,1768348263488,-500.0,0.00017808,2]
[401727732,1768348263497,-500.0,0.00017808,2]
[401727733,1768348263506,-500.0,0.00017808,2]
[401727734,1768348263516,-2477.56,0.00017808,2]
[401727735,1768348263526,-995.11,0.00017808,2]
[401727736,1768348263536,-500.0,0.00017808,2]
[401727737,1768348263545,-1740.84,0.00017808,2]
[401727738,1768348263555,-500.0,0.00017808,2]
[401727739,1768348263564,-500.0,0.00017808,2]
[401727740,1768348263573,-572.34,0.00017808,2]
[401727741,1768348263583,-6567.43,0.00017808,2]
[401727742,1768348263593,-3311.16,0.00017808,2]
[401727743,1768348263603,-3615.15,0.00017808,2]
[401727744,1768348263613,-500.0,0.00017808,2]
[401727745,1768348263622,-500.0,0.00017808,2]
[401727746,1768348263632,-500.0,0.00017808,2]
[401727747,1768348263642,-529.69990998,0.00017808,2]
[401727748,1768348263652,-500.0,0.00017808,2]
[401727749,1768348263663,-1383.38,0.00017808,2]
[401727750,1768348263673,-2379.05,0.00017808,2]
[401727751,1768348263686,-540.41,0.00017808,2]
[401727752,1768348263696,-500.0,0.00017808,2]
[401727753,1768348263706,-354.75753863,0.00017808,2]
[401727754,1768348263715,-500.0,0.00017808,2]
[401727755,1768348263726,-999.87,0.00017808,2]
[401727756,1768348263735,-3810.4,0.00017808,2]
[401727757,1768348263744,-3979.49,0.00017808,2]
[401727758,1768348263755,-500.0,0.00017808,2]
[401727759,1768348263764,-558.31758115,0.00017808,2]
[401727760,1768348263774,-1233.93,0.00017808,2]
[401727761,1768348263783,-500.0,0.00017808,2]
[401727762,1768348263793,-957.61,0.00017808,2]
[401727763,1768348263803,-3158.38,0.00017808,2]
[401727764,1768348263812,-582.02,0.00017808,2]
[401727765,1768348263823,-478.545149,0.00017808,2]
[401727766,1768348263832,-1322.38,0.00017808,2]
[401727767,1768348263842,-500.0,0.00017808,2]
[401727768,1768348263852,-538.81675123,0.00017808,2]
[401727769,1768348263862,-864.14,0.00017808,2]
[401727770,1768348263871,-833.3,0.00017808,2]
[401727771,1768348263881,-711.81,0.00017808,2]
[401727772,1768348263891,-6718.78,0.00017808,2]
[401727773,1768348263900,-500.0,0.00017808,2]
[401727774,1768348263910,-500.0,0.00017808,2]
[401727775,1768348263920,-500.0,0.00017808,2]
[401727776,1768348263930,-500.0,0.00017808,2]
[401727777,1768348263939,-500.0,0.00017808,2]
[401727778,1768348263948,-1392.52,0.00017808,2]
[401727779,1768348263958,-836.52,0.00017808,2]
[401727780,1768348263968,-929.1,0.00017808,2]
[401727781,1768348263978,-171.98,0.0001781,2]
[401727782,1768348263988,-151.0,0.00017817,2]
[401727783,1768348263997,-1672.92518,0.0001782,2]
[401727784,1768348264007,-1672.92519,0.0001782,2]
[401727785,1768348264016,-1672.92518,0.0001782,2]
[401727786,1768348264025,-1672.92518,0.0001782,2]
[401727787,1768348264035,-580.30005,0.0001782,2]
[401727788,1768348264044,-580.30005,0.0001782,2]
[401727789,1768348264054,-150.0,0.00017821,2]
[401727790,1768348264063,-796.0,0.00017825,2]
[401727791,1768348264073,-2246.65067805,0.0001783,2]
[401727792,1768348264083,-580.30005,0.0001783,2]
[401727793,1768348264093,-21393.0,0.00017834,2]
[401727794,1768348264102,-796.0,0.00017842,2]
[401727795,1768348264112,-580.30005,0.0001786,2]
[401727796,1768348264121,-2865.4,0.0001787,2]
[401727797,1768348264130,-580.30005,0.0001788,2]
[401727798,1768348264140,-178.67,0.00017896,2]
[401727799,1768348264149,-25000.0,0.000179,3]
[401727800,1768348264159,-10000.0,0.000179,2]
[401727801,1768348264168,-208.1547595,0.000179,2]
[401727802,1768348264178,-5687.80677552,0.000179,2]
[401727803,1768348264188,-690.78364889,0.000179,2]
[401727804,1768348264204,-194.33580931,0.000179,2]
[401727805,1768348264214,-194.33580931,0.000179,2]
[401727806,1768348264224,-194.33580931,0.000179,2]
[401727807,1768348264234,-194.33580931,0.000179,2]
[401727808,1768348264244,-194.33580931,0.000179,2]
[401727809,1768348264254,-194.33580931,0.000179,2]
[401727810,1768348264264,-194.33580931,0.000179,2]
[401727811,1768348264273,-194.33580931,0.000179,2]
[401727812,1768348264282,-194.33580931,0.000179,2]
[401727813,1768348264292,-194.33580931,0.000179,2]
[401727814,1768348264302,-194.33580931,0.000179,2]
[401727815,1768348264311,-194.33580931,0.000179,2]
[401727816,1768348264320,-1868.84736245,0.000179,3]
[401727817,1768348264330,-30321.31818607,0.000179,2]
[401727818,1768348264339,-198.90312919,0.000179,3]
[401727819,1768348264349,-1271.84126039,0.000179,2]
[401727820,1768348264359,-1500.0,0.000179,2]
[401727821,1768348264368,-698.14990608,0.000179,2]
[401727822,1768348264378,-2577.0,0.000179,2]
[401727823,1768348264387,-580.30005,0.0001791,2]
[401727824,1768348264396,-150.0,0.0001793,2]
[401727825,1768348264405,-796.0,0.00017938,2]
[401727826,1768348264415,-19981.82706419,0.00017946,2]
[401727827,1768348264425,-150.0,0.00017949,2]
[401727828,1768348264433,-172.6744437,0.0001796,3]
[401727829,1768348264442,-796.0,0.00017966,2]
[401727830,1768348264452,-9156.0,0.00017973,2]
[401727831,1768348264461,-500.0,0.00017973,2]
[401727832,1768348264470,-500.0,0.00017973,2]
[401727833,1768348264479,-500.0,0.00017973,2]
[401727834,1768348264488,-500.0,0.00017973,2]
[401727835,1768348264498,-500.0,0.00017973,2]
[401727836,1768348264507,-500.0,0.00017973,2]
[401727837,1768348264516,-500.0,0.00017973,2]
[401727838,1768348264525,-500.0,0.00017973,2]
[401727839,1768348264534,-500.0,0.00017973,2]
[401727840,1768348264542,-500.0,0.00017973,2]
[401727841,1768348264551,-500.0,0.00017973,2]
[401727842,1768348264560,-501.08254994,0.00017973,2]
[401727843,1768348264569,-500.0,0.00017973,2]
[401727844,1768348264578,-500.62149668,0.00017973,2]
[401727845,1768348264587,-194.39882883,0.00017973,2]
[401727846,1768348264596,-500.0,0.00017973,2]
[401727847,1768348264606,-500.0,0.00017973,2]
[401727848,1768348264619,-500.0,0.00017973,2]
[401727849,1768348264629,-500.0,0.00017973,2]
[401727850,1768348264638,-500.0,0.00017973,2]
[401727851,1768348264647,-500.0,0.00017973,2]
[401727852,1768348264657,-500.0,0.00017973,2]
[401727853,1768348264666,-500.0,0.00017973,2]
[401727854,1768348264680,-500.0,0.00017973,2]
[401727855,1768348264689,-588.0072514,0.00017973,2]
[401727856,1768348264698,-500.0,0.00017973,2]
[401727857,1768348264707,-500.0,0.00017973,2]
[401727858,1768348264717,-529.57942449,0.00017973,2]
[401727859,1768348264726,-500.0,0.00017973,2]
[401727860,1768348264735,-150.0,0.00017973,2]
[401727861,1768348264749,-500.96497178,0.00017973,2]
[401727862,1768348264758,-500.0,0.00017973,2]
[401727863,1768348264767,-500.0,0.00017973,2]
[401727864,1768348264776,-500.0,0.00017973,2]
[401727865,1768348264785,-503.84453135,0.00017973,2]
[401727866,1768348264794,-500.0,0.00017973,2]
[401727867,1768348264803,-500.0,0.00017973,2]
[401727868,1768348264812,-438.23367028,0.00017973,2]
[401727869,1768348264821,-500.0,0.00017973,2]
[401727870,1768348264830,-500.0,0.00017973,2]
[401727871,1768348264849,-500.0,0.00017973,2]
[401727872,1768348264861,-500.0,0.00017973,2]
[401727873,1768348264870,-500.0,0.00017973,2]
[401727874,1768348264879,-500.0,0.00017973,2]
[401727875,1768348264888,-500.0,0.00017973,2]
[401727876,1768348264898,-500.0,0.00017973,2]
[401727877,1768348264909,-150.0,0.00017973,2]
[401727878,1768348265097,-892.276,0.00017973,2]
[401727879,1768348265107,-1000.0,0.00017973,2]
[401727880,1768348265116,-627.108,0.00017973,2]
[401727881,1768348265126,-569.96,0.00017973,2]
[401727882,1768348265136,-1000.0,0.00017973,2]
[401727883,1768348265146,-1000.0,0.00017973,2]
[401727884,1768348265157,-1000.0,0.00017973,2]
[401727885,1768348265167,-1000.0,0.00017973,2]
[401727886,1768348265177,-1000.0,0.00017973,2]
[401727887,1768348265188,-1000.0,0.00017973,2]
[401727888,1768348265197,-557.36,0.00017973,2]
[401727889,1768348265207,-500.0,0.00017982,2]
[401727890,1768348265219,-177.16737328,0.0001799,2]
[401727891,1768348265229,-177.16737328,0.0001799,2]
[401727892,1768348265239,-151.0,0.00017997,2]
[401727893,1768348265248,-3506.4217043,0.00017998,2]
[401727894,1768348265257,-66318.5259432,0.00017998,2]
[401727895,1768348265266,-2304.4023998,0.00017998,2]
[401727896,1768348265275,-150.0,0.00017999,2]
[401727897,1768348265284,-150.0,0.00017999,2]
[401727898,1768348265293,-230.87580735,0.00017999,2]
[401727899,1768348265303,-300.0,0.00017999,2]
[401727900,1768348265312,-666.0,0.00017999,2]
[401727901,1768348265321,-300.0,0.00017999,2]
[401727902,1768348265331,-300.0,0.00017999,2]
[401727903,1768348265340,-666.0,0.00017999,2]
[401727904,1768348265349,-300.0,0.00017999,2]
[401727905,1768348265359,-666.0,0.00017999,2]
[401727906,1768348265368,-300.0,0.00017999,2]
[401727907,1768348265377,-666.0,0.00017999,2]
[401727908,1768348265386,-94287.90627645,0.00018,2]
[401727909,1768348265398,-150.0,0.00018,2]
[401727910,1768348265420,-182.81,0.00018,5]
[401727911,1768348265436,-5306949.04847554,0.00018,2]
[401727912,1768348265728,-467.97099624,0.00018,2]
[401727913,1768348265739,-500.0,0.00018,2]
[401727914,1768348265751,-446.54502388,0.00018,2]
[401727915,1768348265762,-443.58598797,0.00018,2]
[401727916,1768348265773,-378.89329555,0.00018,2]
[401727917,1768348266872,-151.0,0.00015869,2]
[401727918,1768348266882,-500.0,0.00016438,2]
[401727919,1768348266892,-483.21,0.00017589,2]
[401727920,1768348266901,-142403.86216495,0.00018,2]
[401727921,1768348266952,-151.0,0.00015869,2]
[401727922,1768348266962,-7142.29476398,0.00018,2]
[401727923,1768348266972,-975.43176676,0.00018,2]
[401727924,1768348266983,-475.3447729,0.00018,2]
[401727925,1768348266998,-3536.49259322,0.00018,2]
[401727926,1768348267008,-2165.5560001,0.00018,2]
[401727927,1768348267019,-1384.00984328,0.00018,2]
[401727928,1768348267080,-639.81943298,0.00018,2]
[401727929,1768348267091,-643.53639791,0.00018,2]
[401727930,1768348267103,-4300.95728446,0.00018,2]
[401727931,1768348267114,-569.93088227,0.00018,2]
[401727932,1768348267257,-26843.62044897,0.00018,2]
[401727933,1768348267270,-288.76872577,0.00018,2]
[401727934,1768348267281,-3184.6982721,0.00018,2]
[401727935,1768348267292,-2011.75052409,0.00018,2]
[401727936,1768348267304,-777.45991394,0.00018,2]
[401727937,1768348267315,-1118.4173,0.00018,2]
[401727938,1768348267327,-5286.694357,0.00018,2]
[401727939,1768348267338,-1166.68496502,0.00018,2]